bitfinex/quotes_SOLUSD_20251212
["timestamp","ask_amount","ask_price","bid_price","bid_amount"]
[1765567450597,8.80994492,132.36,132.35,3.32492523]
[1765567451310,16.36509753,132.36,132.35,3.32492523]
[1765567453087,0.2,132.38,132.35,3.60924837]
[1765567453290,0.2,132.38,132.37,6.9341736]
[1765567453500,0.2,132.43,132.38,0.28432314]
[1765567453813,0.2,132.43,132.42,3.32492523]
[1765567454017,0.2,132.43,132.42,7.62566328]
[1765567455419,8.4111591,132.43,132.39,15.83332944]
[1765567455596,8.4111591,132.43,132.4,7.62566328]
[1765567455597,8.80994492,132.42,132.4,7.62566328]
[1765567455804,9.46994492,132.42,132.4,7.62566328]
[1765567456198,9.46994492,132.41,132.39,15.90566328]
[1765567456516,0.66,132.41,132.39,8.28]
[1765567456721,8.21287009,132.4,132.39,8.28]
[1765567457092,7.55287009,132.4,132.39,15.90566328]
[1765567457319,8.21287009,132.4,132.39,8.28]
[1765567457497,8.21287009,132.4,132.39,15.90566328]
[1765567457817,0.66,132.4,132.39,8.28]
[1765567459315,7.55243956,132.41,132.39,15.90566328]
[1765567459527,8.24243956,132.41,132.39,15.90566328]
[1765567459728,16.3618693,132.42,132.4,7.62566328]
[1765567460031,17.0518693,132.42,132.4,7.62566328]
[1765567460401,20.7983653,132.43,132.41,7.62566328]
[1765567460724,7.75119036,132.43,132.39,15.83342193]
[1765567460899,7.75119036,132.43,132.42,7.62566328]
[1765567462008,0.2,132.43,132.42,7.62566328]
[1765567462203,0.2,132.43,132.42,7.90998642]
[1765567463024,0.2,132.43,132.42,23.74171576]
[1765567465210,0.2,132.43,132.42,16.18998642]
[1765567465525,0.2,132.43,132.42,23.74171576]
[1765567465825,0.2,132.45,132.44,13.0470912]
[1765567466143,0.2,132.46,132.45,0.28432314]
[1765567466430,0.2,132.46,132.45,16.18998642]
[1765567467217,0.2,132.46,132.45,23.74000529]
[1765567469796,0.2,132.49,132.47,28.5827409]
[1765567470121,0.2,132.49,132.48,23.7956497]
[1765567471193,0.2,132.49,132.48,16.09263231]
[1765567471401,0.2,132.49,132.48,23.71829559]
[1765567471724,0.2,132.52,132.48,50.21473181]
[1765567471899,0.2,132.52,132.51,7.76782485]
[1765567472101,0.2,132.52,132.51,16.02782485]
[1765567473018,0.87,132.52,132.51,15.88566328]
[1765567473323,8.41603078,132.52,132.51,8.26]
[1765567474527,0.2,132.52,132.51,20.63902507]
[1765567474725,0.2,132.52,132.51,28.46994846]
[1765567475308,0.2,132.53,132.52,0.28432314]
[1765567475625,0.2,132.54,132.52,25.71043941]
[1765567475806,0.2,132.54,132.53,12.66334821]
[1765567476000,0.2,132.57,132.56,5.17706911]
[1765567476201,0.2,132.57,132.56,13.43706911]
[1765567476501,0.2,132.57,132.56,8.26]
[1765567476809,0.2,132.57,132.56,13.43706911]
[1765567477332,0.2,132.57,132.56,21.26514602]
[1765567477696,0.2,132.57,132.56,13.43706911]
[1765567479207,0.87,132.57,132.56,13.43706911]
[1765567479526,0.87,132.57,132.56,12.72082288]
[1765567479527,0.2,132.57,132.56,12.72082288]
[1765567479911,0.2,132.57,132.56,5.17706911]
[1765567480508,0.87,132.57,132.56,5.17706911]
[1765567481134,0.87,132.57,132.55,8.26]
[1765567481334,0.2,132.57,132.56,5.17706911]
[1765567481534,0.2,132.57,132.56,7.54375377]
[1765567481722,0.2,132.57,132.56,13.00514602]
[1765567481921,0.2,132.57,132.56,5.46139225]
[1765567482315,0.2,132.57,132.56,13.00514602]
[1765567482715,0.2,132.57,132.56,5.46139225]
[1765567482926,0.87,132.57,132.56,5.46139225]
[1765567483127,0.87,132.57,132.56,5.17706911]
[1765567483712,0.2,132.57,132.56,5.17706911]
[1765567483914,0.87,132.57,132.55,15.80416784]
[1765567484109,0.87,132.57,132.56,5.17706911]
[1765567484614,0.87,132.57,132.55,8.26]
[1765567484816,0.67,132.56,132.55,8.26]
[1765567485235,9.47994492,132.56,132.55,8.26]
[1765567485422,0.67,132.56,132.55,13.43706911]
[1765567486242,0.67,132.56,132.55,13.43985949]
[1765567487046,0.67,132.56,132.55,8.26]
[1765567487222,0.67,132.56,132.55,13.43985949]
[1765567487937,0.67,132.56,132.55,8.26]
[1765567487938,8.21375377,132.56,132.55,8.26]
[1765567488625,8.21375377,132.56,132.55,7.54]
[1765567492750,8.80994492,132.55,132.48,0.67]
[1765567493057,9.46994492,132.55,132.51,12.36974701]
[1765567493231,0.66,132.54,132.52,8.26]
[1765567493855,8.40358277,132.57,132.53,12.36974701]
[1765567494056,0.66,132.56,132.54,12.36974701]
[1765567494426,0.66,132.56,132.55,8.26]
[1765567494625,7.74358277,132.57,132.55,20.62974701]
[1765567494954,7.74318473,132.57,132.55,8.26]
[1765567495263,8.40318473,132.57,132.55,8.26]
[1765567495555,8.40318473,132.57,132.55,20.62974701]
[1765567496158,0.2,132.57,132.56,12.36974701]
[1765567499471,0.2,132.57,132.55,15.8039927]
[1765567499845,0.86,132.57,132.55,8.26]
[1765567500052,0.2,132.57,132.56,12.36974701]
[1765567500863,0.86,132.57,132.55,20.62974701]
[1765567501062,8.40325983,132.57,132.55,20.62974701]
[1765567501259,8.40325983,132.57,132.55,8.26]
[1765567501459,0.66,132.56,132.55,8.26]
[1765567501659,0.16,132.56,132.55,8.26]
[1765567502480,0.2,132.57,132.55,20.62974701]
[1765567502657,0.2,132.57,132.56,12.36974701]
[1765567502862,7.54271227,132.58,132.56,12.36974701]
[1765567503060,8.80994492,132.57,132.55,8.26]
[1765567503584,26.39925171,132.58,132.55,20.62974701]
[1765567503749,9.46994492,132.57,132.55,8.26]
[1765567503950,9.46994492,132.57,132.49,18.8685053]
[1765567503951,8.80994492,132.56,132.49,0.67]
[1765567504175,26.83596006,132.56,132.51,12.36974701]
[1765567504494,8.80994492,132.54,132.5,20.62974701]
[1765567504858,0.66,132.53,132.5,20.62974701]
[1765567505985,5.66067375,132.53,132.5,8.26]
[1765567506283,8.20655833,132.52,132.5,8.26]
[1765567507754,7.54655833,132.52,132.5,8.26]
[1765567507976,0.66,132.51,132.5,8.26]
[1765567508687,8.20660025,132.51,132.5,8.26]
[1765567509069,13.21801533,132.51,132.5,8.26]
[1765567510488,8.20660025,132.51,132.5,8.26]
[1765567510783,0.66,132.56,132.5,8.93]
[1765567510989,5.67771132,132.55,132.5,16.47704955]
[1765567511275,5.01771132,132.54,132.5,8.26]
[1765567511475,0.66,132.54,132.5,13.44559117]
[1765567511691,0.66,132.53,132.5,13.44559117]
[1765567511994,13.82879187,132.52,132.5,8.26]
[1765567512298,8.80994492,132.52,132.5,8.26]
[1765567512467,0.66,132.51,132.5,8.26]
[1765567512786,8.2054614,132.53,132.5,13.44559117]
[1765567512996,0.66,132.53,132.5,13.44559117]
[1765567513290,120.65502861,132.54,132.52,5.18559117]
[1765567513291,104.3,132.54,132.52,5.18559117]
[1765567513473,111.8448921,132.54,132.53,8.26]
[1765567513675,7.5448921,132.54,132.53,8.26]
[1765567514194,8.2048921,132.54,132.53,8.26]
[1765567514881,13.22415074,132.55,132.53,8.26]
[1765567515192,8.20442729,132.55,132.53,8.26]
[1765567516389,8.20362864,132.57,132.53,8.93]
[1765567516568,0.66,132.55,132.53,8.26]
[1765567516781,8.20457711,132.55,132.53,8.26]
[1765567518062,0.7,132.54,132.53,8.26]
[1765567518272,9.50994492,132.54,132.53,8.26]
[1765567518478,9.50994492,132.54,132.48,8.24811759]
[1765567518479,32.76105929,132.54,132.51,8.26]
[1765567518663,16.3559757,132.52,132.51,8.26]
[1765567519186,17.0559757,132.52,132.51,8.26]
[1765567520491,7.5458277,132.53,132.51,20.64122757]
[1765567520871,7.5458277,132.53,132.51,8.26]
[1765567521077,8.2458277,132.53,132.51,8.26]
[1765567521471,26.4084801,132.54,132.51,8.26]
[1765567521699,7.5448921,132.54,132.51,8.94]
[1765567521879,7.5448921,132.54,132.51,28.86777461]
[1765567522195,8.24439304,132.55,132.52,0.68]
[1765567522786,8.24439304,132.55,132.51,8.26]
[1765567522994,8.24439304,132.55,132.51,8.94]
[1765567523573,8.24439304,132.55,132.51,16.48659784]
[1765567523775,0.7,132.57,132.53,0.28432314]
[1765567523976,5.02101799,132.58,132.54,8.26]
[1765567524203,5.72101799,132.58,132.54,8.94]
[1765567524384,0.7,132.57,132.54,8.94]
[1765567524893,7.54261577,132.58,132.54,21.32122757]
[1765567525203,7.54261577,132.58,132.55,0.68]
[1765567525685,8.24261577,132.58,132.55,0.68]
[1765567526086,0.7,132.57,132.5,13.7270912]
[1765567526278,21.17944607,132.55,132.5,0.82216157]
[1765567526485,21.17944607,132.55,132.51,8.26]
[1765567526685,18.08925174,132.54,132.51,8.26]
[1765567526999,13.06950115,132.54,132.51,8.26]
[1765567527300,0.7,132.53,132.51,8.26]
[1765567527874,7.54603078,132.52,132.51,8.26]
[1765567528408,22.07722783,132.52,132.51,8.26]
[1765567530605,13.26728291,132.52,132.51,8.26]
[1765567531112,8.24603078,132.52,132.51,8.26]
[1765567531411,13.26728291,132.52,132.51,8.26]
[1765567531581,29.42547685,132.52,132.51,8.26]
[1765567531780,34.44672898,132.52,132.51,8.26]
[1765567532593,47.49382018,132.52,132.51,8.26]
[1765567532774,66.35889714,132.52,132.48,8.26]
[1765567532979,21.17944607,132.5,132.48,8.26]
[1765567533403,9.50994492,132.5,132.48,8.26]
[1765567533608,21.87944607,132.5,132.48,8.26]
[1765567533824,13.06950115,132.49,132.48,8.26]
[1765567534119,151.79008769,132.49,132.44,8.26]
[1765567534324,12.36950115,132.46,132.44,8.26]
[1765567534814,8.80994492,132.46,132.44,8.26]
[1765567535003,9.50994492,132.46,132.44,8.26]
[1765567535200,8.80994492,132.46,132.44,8.26]
[1765567535412,9.50994492,132.45,132.44,8.26]
[1765567535817,26.88597567,132.45,132.44,8.26]
[1765567535989,8.80994492,132.43,132.41,8.46]
[1765567536412,9.50994492,132.43,132.41,8.46]
[1765567537499,8.2504726,132.45,132.41,8.46]
[1765567537799,17.06041752,132.45,132.41,8.46]
[1765567537999,16.36041752,132.45,132.42,0.68]
[1765567538518,17.06041752,132.45,132.41,8.46]
[1765567538728,17.06041752,132.45,132.41,9.14]
[1765567540123,24.69097271,132.45,132.41,9.14]
[1765567541124,0.7,132.44,132.41,9.14]
[1765567541322,7.5511591,132.43,132.41,9.14]
[1765567541922,16.36110402,132.43,132.41,8.46]
[1765567542121,17.06110402,132.43,132.41,8.46]
[1765567542322,0.7,132.42,132.41,8.46]
[1765567542633,9.50994492,132.42,132.41,8.46]
[1765567542934,17.14050011,132.42,132.41,8.46]
[1765567543101,9.50994492,132.42,132.41,8.46]
[1765567543296,17.06167426,132.42,132.41,8.46]
[1765567544401,17.06167426,132.42,132.41,0.2]
[1765567544601,42.72984968,132.42,132.41,1e-08]
[1765567544830,37.73932065,132.42,132.41,1e-08]
[1765567545308,24.69222945,132.42,132.41,1e-08]
[1765567545516,29.67974169,132.42,132.41,1e-08]
[1765567550625,22.0491865,132.42,132.41,1e-08]
[1765567550837,30.10876546,132.42,132.41,1e-08]
[1765567551021,37.73932065,132.42,132.41,1e-08]
[1765567558043,33.43475707,132.42,132.41,1e-08]
[1765567559817,20.38766587,132.42,132.41,1e-08]
[1765567560736,13.0470912,132.39,132.36,8.46]
[1765567560912,3.32599161,132.37,132.36,0.2]
[1765567562223,3.32698455,132.37,132.36,0.2]
[1765567562406,13.0470912,132.34,132.29,0.7]
[1765567562616,8.80994492,132.36,132.29,0.7]
[1765567562617,3.32698455,132.3,132.29,0.7]
[1765567562915,10.88556353,132.3,132.29,0.7]
[1765567563128,10.88556353,132.3,132.27,0.2]
[1765567563311,3.32698455,132.28,132.27,0.2]
[1765567563532,21.85703612,132.28,132.27,0.2]
[1765567563729,25.18402067,132.28,132.27,0.2]
[1765567563941,8.80994492,132.28,132.27,0.9]
[1765567564254,8.80994492,132.28,132.27,0.2]
[1765567565030,16.36966672,132.28,132.27,0.2]
[1765567565258,16.36966672,132.28,132.27,0.9]
[1765567565425,20.69606678,132.3,132.27,0.9]
[1765567565629,13.0470912,132.3,132.28,0.7]
[1765567566146,20.60579343,132.3,132.28,0.7]
[1765567567260,28.25476901,132.3,132.28,0.7]
[1765567568657,7.64897558,132.29,132.28,0.7]
[1765567568842,16.4589205,132.29,132.27,0.2]
[1765567569045,16.4589205,132.29,132.27,0.9]
[1765567569452,7.5597218,132.28,132.27,0.9]
[1765567569664,16.36966672,132.28,132.27,0.2]
[1765567569955,24.7186423,132.28,132.27,0.2]
[1765567570372,7.5597218,132.28,132.27,0.9]
[1765567570932,7.5597218,132.28,132.27,0.2]
[1765567571935,7.5597218,132.28,132.27,0.9]
[1765567572156,16.36932194,132.29,132.27,0.9]
[1765567572337,16.36932194,132.29,132.28,0.7]
[1765567573036,16.36932194,132.29,132.27,0.2]
[1765567573260,16.36932194,132.29,132.28,0.7]
[1765567573755,16.36932194,132.29,132.27,0.2]
[1765567573952,16.36932194,132.29,132.27,0.9]
[1765567574559,16.36932194,132.29,132.27,0.2]
[1765567574751,16.36932194,132.29,132.27,0.9]
[1765567575261,16.36932194,132.29,132.28,0.7]
[1765567576458,16.36932194,132.29,132.27,0.9]
[1765567576662,7.64897558,132.28,132.27,0.2]
[1765567576844,8.34897558,132.28,132.27,0.2]
[1765567578767,8.80994492,132.27,132.24,0.1]
[1765567578973,13.79171398,132.27,132.25,0.66]
[1765567579262,8.80994492,132.27,132.25,0.66]
[1765567579445,21.43816659,132.27,132.25,0.66]
[1765567579745,16.4589205,132.27,132.25,0.66]
[1765567580360,16.4589205,132.27,132.24,0.1]
[1765567580566,16.4589205,132.27,132.24,0.81]
[1765567581248,7.56086496,132.26,132.24,0.81]
[1765567582880,7.56086496,132.26,132.24,0.1]
[1765567582881,17.1489205,132.25,132.24,0.1]
[1765567583051,35.17263696,132.25,132.24,1e-08]
[1765567583372,42.73407363,132.25,132.24,1e-08]
[1765567583971,38.41914152,132.25,132.24,1e-08]
[1765567584546,25.37205032,132.25,132.24,1e-08]
[1765567584766,25.37205032,132.25,132.17,8.28]
[1765567584767,8.80994492,132.21,132.17,8.28]
[1765567584970,3.33404347,132.2,132.17,8.99]
[1765567585268,16.37390154,132.21,132.18,0.71]
[1765567585651,19.70794501,132.21,132.18,0.71]
[1765567586186,38.61725595,132.21,132.18,0.71]
[1765567586469,39.30725595,132.21,132.18,0.71]
[1765567587367,38.61725595,132.21,132.18,0.71]
[1765567589252,39.30725595,132.21,132.18,0.71]
[1765567590176,7.56486874,132.19,132.18,0.71]
[1765567591581,7.56486874,132.19,132.17,8.28]
[1765567591885,7.56486874,132.19,132.17,8.99]
[1765567595169,7.56486874,132.19,132.17,8.28]
[1765567595170,9.49994492,132.18,132.17,8.28]
[1765567595369,12.83398839,132.18,132.14,0.71]
[1765567595550,7.56715853,132.15,132.14,0.71]
[1765567595751,7.56715853,132.15,132.13,8.38]
[1765567595752,16.37710345,132.15,132.13,8.38]
[1765567595971,16.37710345,132.15,132.13,9.09]
[1765567597162,12.83398839,132.14,132.13,1e-08]
[1765567597495,7.56715853,132.15,132.13,1e-08]
[1765567597651,12.83398839,132.14,132.13,1e-08]
[1765567597848,14.71766759,132.14,132.13,1e-08]
[1765567598079,19.6754131,132.14,132.13,1e-08]
[1765567598291,27.9554131,132.14,132.13,1e-08]
[1765567598658,22.73769043,132.14,132.13,1e-08]
[1765567598984,27.9554131,132.14,132.13,1e-08]
[1765567599695,35.52314429,132.14,132.13,1e-08]
[1765567600184,35.52410872,132.14,132.13,1e-08]
[1765567601358,16.37767611,132.14,132.13,1e-08]
[1765567601561,16.37767611,132.14,132.13,0.71000001]
[1765567601773,16.37767611,132.14,132.13,1e-08]
[1765567608471,21.59636321,132.14,132.13,1e-08]
[1765567608695,27.2453711,132.14,132.13,1e-08]
[1765567608904,40.2924623,132.14,132.13,1e-08]
[1765567609272,40.2924623,132.14,132.11,1e-08]
[1765567609273,13.0470912,132.12,132.11,1e-08]
[1765567609572,18.2657783,132.12,132.11,1e-08]
[1765567609783,18.9557783,132.12,132.11,1e-08]
[1765567610377,13.7370912,132.12,132.11,1e-08]
[1765567610675,18.9557783,132.12,132.11,1e-08]
[1765567610879,35.33459999,132.12,132.11,1e-08]
[1765567611097,35.07106875,132.12,132.11,1e-08]
[1765567611299,40.28975585,132.12,132.11,1e-08]
[1765567612720,9.50994492,132.11,132.08,1e-08]
[1765567612990,13.0470912,132.06,132.05,0.1]
[1765567613169,18.2657783,132.06,132.05,0.1]
[1765567613369,18.2657783,132.06,132.05,1e-08]
[1765567613370,18.9657783,132.06,132.05,1e-08]
[1765567613769,27.77572322,132.06,132.05,1e-08]
[1765567614868,30.12935173,132.06,132.05,1e-08]
[1765567615075,34.64803883,132.06,132.05,1e-08]
[1765567615296,35.34803883,132.06,132.05,1e-08]
[1765567616286,13.0470912,132.03,132.02,0.1]
[1765567616591,18.2657783,132.03,132.02,0.1]
[1765567616890,21.85703612,132.03,132.02,0.77]
[1765567617090,29.43107232,132.03,132.02,0.77]
[1765567617403,7.5740362,132.03,132.02,0.77]
[1765567617779,8.2740362,132.03,132.02,0.1]
[1765567617977,30.13107232,132.03,132.02,1e-08]
[1765567618598,35.34975942,132.03,132.02,1e-08]
[1765567619813,43.64975942,132.03,132.02,1e-08]
[1765567621390,37.73107232,132.03,132.02,1e-08]
[1765567621691,29.43107232,132.03,132.02,1e-08]
[1765567622578,29.43107232,132.03,132.02,0.67000001]
[1765567622784,16.38398112,132.03,132.02,0.67000001]
[1765567623496,31.98066526,132.05,132.02,5.88868711]
[1765567623497,7.57365201,132.04,132.02,5.88868711]
[1765567623806,16.38359693,132.04,132.02,0.67000001]
[1765567624180,7.57365201,132.04,132.02,5.88868711]
[1765567624375,26.50646311,132.05,132.02,0.67000001]
[1765567624599,26.50646311,132.05,132.02,0.67]
[1765567625102,7.57288905,132.05,132.03,5.2186871]
[1765567625498,120.68249058,132.06,132.04,5.8886871]
[1765567625677,7.57116898,132.08,132.05,5.2186871]
[1765567626001,7.57058511,132.1,132.07,5.2186871]
[1765567626308,39.54273308,132.1,132.07,5.2186871]
[1765567626602,26.49564188,132.1,132.08,0.67]
[1765567627504,26.49564188,132.1,132.08,5.8886871]
[1765567627505,7.57058511,132.1,132.08,5.8886871]
[1765567627886,7.57058511,132.1,132.09,0.67]
[1765567628097,7.57058511,132.1,132.08,0.67]
[1765567630007,7.57058511,132.1,132.08,13.12820334]
[1765567630308,16.37946413,132.11,132.08,13.12820334]
[1765567630476,16.37946413,132.11,132.09,0.67]
[1765567632782,7.56908702,132.12,132.1,12.45820334]
[1765567633283,7.56908702,132.12,132.11,0.67]
[1765567635083,7.56852687,132.13,132.11,13.12820334]
[1765567635285,7.56737492,132.15,132.12,13.12820334]
[1765567635691,35.29521616,132.15,132.12,0.67]
[1765567636181,8.80994492,132.14,132.11,8.3]
[1765567636388,16.37823859,132.14,132.12,0.67]
[1765567637221,7.56829367,132.14,132.12,0.67]
[1765567638218,26.48505485,132.15,132.12,0.67]
[1765567639518,8.80994492,132.14,132.11,8.3]
[1765567639688,8.80994492,132.14,132.12,0.7]
[1765567640505,7.56830394,132.13,132.12,0.7]
[1765567640813,8.80994492,132.12,132.08,0.69]
[1765567640998,8.80994492,132.12,132.09,13.1414556]
[1765567641195,26.48906379,132.13,132.09,13.1414556]
[1765567641400,26.48906379,132.13,132.1,0.69]
[1765567642296,16.37824886,132.13,132.1,13.1414556]
[1765567642699,16.37824886,132.13,132.11,0.69]
[1765567643998,16.37824886,132.13,132.09,8.3]
[1765567644205,35.98900871,132.13,132.09,21.4414556]
[1765567644406,8.80994492,132.12,132.09,8.99]
[1765567644922,7.5694497,132.11,132.1,0.69]
[1765567645318,61.49156567,132.11,132.06,0.69]
[1765567645503,21.26140052,132.09,132.06,0.69]
[1765567645704,9.49994492,132.09,132.06,0.69]
[1765567645907,8.80994492,132.07,132.05,8.3]
[1765567646723,7.57231561,132.06,132.05,8.3]
[1765567646915,8.80994492,132.05,132.02,0.69]
[1765567647132,12.4514556,132.04,131.99,0.79]
[1765567647342,8.80994492,132.03,131.99,0.79]
[1765567647638,8.80994492,132.03,131.99,9.09]
[1765567647639,21.95140052,132.03,131.99,9.09]
[1765567647930,9.49994492,132.03,131.99,9.09]
[1765567648903,7.5746099,132.02,131.99,9.09]
[1765567649709,8.2646099,132.02,131.99,9.09]
[1765567650038,27.20113466,132.02,131.99,8.4]
[1765567650213,26.51113466,132.02,131.99,9.09]
[1765567651815,26.51113466,132.02,131.99,0.79]
[1765567651816,5.22533971,132.01,131.99,0.79]
[1765567652139,16.38520857,132.01,131.99,0.79]
[1765567652328,20.62191409,132.02,131.99,0.79]
[1765567652839,7.57482289,132.02,131.99,0.79]
[1765567653013,16.38419497,132.03,131.99,14.31533971]
[1765567653207,16.38419497,132.03,132.0,0.69]
[1765567653645,7.57288905,132.05,132.01,5.22533971]
[1765567653940,26.50378217,132.06,132.02,5.22533971]
[1765567654114,14.03528463,132.05,132.0,0.69]
[1765567654315,8.80994492,132.05,132.01,0.69]
[1765567654535,8.80994492,132.05,132.01,5.91533971]
[1765567654724,8.80994492,132.05,132.02,0.69]
[1765567655334,32.41912188,132.06,132.02,0.69]
[1765567655335,26.50378217,132.06,132.02,0.69]
[1765567655519,31.72912188,132.06,132.02,0.69]
[1765567655714,32.41912188,132.06,132.02,0.69]
[1765567656428,8.80994492,132.05,132.02,0.69]
[1765567656628,9.49994492,132.05,132.02,0.69]
[1765567657126,0.69,132.04,132.0,0.69]
[1765567657516,5.91533971,132.04,132.0,0.69]
[1765567658126,7.5740362,132.03,132.0,0.69]
[1765567658529,7.5740362,132.03,132.0,5.91533971]
[1765567658921,7.5740362,132.03,132.01,0.69]
[1765567659447,7.57346258,132.04,132.01,0.69]
[1765567659940,16.48558934,132.03,131.99,9.09]
[1765567660148,17.17558934,132.03,131.99,9.09]
[1765567661045,0.69,132.02,131.99,9.09]
[1765567661417,7.57518369,132.01,131.99,9.09]
[1765567661823,7.57518369,132.01,131.99,8.4]
[1765567662023,7.57518369,132.01,131.99,9.09]
[1765567662946,7.57474465,132.02,132.0,0.69]
[1765567663945,7.57422389,132.03,132.0,0.69]
[1765567664146,7.67564442,132.05,132.0,0.97432314]
[1765567664347,7.5736258,132.04,132.0,8.54998943]
[1765567664551,7.57305388,132.05,132.01,0.69]
[1765567665140,7.57252313,132.06,132.02,0.28432314]
[1765567665317,17.17558934,132.05,132.03,8.3]
[1765567665523,7.5746099,132.02,131.99,0.79]
[1765567665756,15.25025432,132.02,131.99,0.79]
[1765567665963,7.5746099,132.02,131.99,8.36632972]
[1765567666126,24.05979696,132.03,131.99,8.36632972]
[1765567666326,24.05979696,132.03,132.0,0.69]
[1765567666549,16.38415254,132.03,132.0,0.69]
[1765567666737,7.57420762,132.03,132.0,0.69]
[1765567667445,43.68488746,132.03,131.99,0.1]
[1765567667653,43.68488746,132.03,131.99,0.79]
[1765567668844,35.31924304,132.03,131.99,0.79]
[1765567669349,7.573604,132.04,131.99,16.32628374]
[1765567669945,7.573604,132.04,132.0,0.69]
[1765567670952,7.573604,132.04,132.0,8.26567847]
[1765567671148,16.38301752,132.05,132.01,8.3]
[1765567671451,0.72,132.04,132.01,9.02]
[1765567671652,8.39564442,132.04,132.01,9.02]
[1765567672457,7.5740362,132.03,132.01,9.02]
[1765567672686,24.77962554,132.03,131.99,0.1]
[1765567672834,24.77962554,132.03,131.99,0.82]
[1765567673152,35.31907162,132.03,131.99,0.82]
[1765567673327,7.57360125,132.04,131.99,8.77996756]
[1765567673522,7.57360125,132.04,132.0,8.39564442]
[1765567673744,7.57360125,132.04,132.0,15.97131422]
[1765567673951,7.57360125,132.04,132.0,7.5756698]
[1765567674151,16.48558934,132.02,131.99,0.1]
[1765567674354,0.72,132.01,131.99,0.1]
[1765567674555,7.57575757,132.0,131.99,0.1]
[1765567674764,7.57541305,132.01,131.99,0.82]
[1765567676461,7.57541305,132.01,131.99,0.1]
[1765567677567,17.20987578,132.0,131.99,0.1]
[1765567678371,8.80994492,131.99,131.98,0.1]
[1765567678579,17.20987578,131.99,131.98,0.1]
[1765567679076,9.52994492,131.99,131.98,0.1]
[1765567679259,17.20987578,131.99,131.98,0.1]
[1765567679461,17.10627646,131.99,131.98,0.1]
[1765567679773,24.78620732,131.99,131.98,0.1]
[1765567679948,20.45350611,131.99,131.98,0.1]
[1765567680951,20.45350611,131.99,131.98,1e-08]
[1765567681150,28.75350611,131.99,131.98,1e-08]
[1765567682062,33.71888199,131.99,131.98,1e-08]
[1765567684475,8.80994492,131.95,131.92,8.3]
[1765567684662,8.80994492,131.95,131.9,0.72]
[1765567684663,3.34722965,131.93,131.9,0.72]
[1765567684858,8.80994492,131.94,131.91,0.72]
[1765567684859,12.15717457,131.94,131.91,0.72]
[1765567685060,13.7670912,131.95,131.91,0.72]
[1765567685061,13.0470912,131.95,131.91,0.72]
[1765567685266,8.80994492,131.95,131.91,0.72]
[1765567685666,7.57920266,131.94,131.91,0.72]
[1765567688000,8.80994492,131.95,131.91,0.72]
[1765567688001,7.57863896,131.95,131.91,8.3007419]
[1765567688279,13.0470912,131.97,131.92,3.63155279]
[1765567688280,8.80994492,131.97,131.92,3.63155279]
[1765567688481,8.80994492,131.97,131.93,0.72]
[1765567688482,16.38766237,131.97,131.93,0.72]
[1765567688986,16.38766237,131.97,131.93,4.06722965]
[1765567689481,7.57633154,131.99,131.95,3.34722965]
[1765567689688,3.34722965,131.98,131.92,3.34722965]
[1765567689985,3.34722965,131.96,131.92,0.72]
[1765567690196,7.57862826,131.95,131.92,0.72]
[1765567690862,7.57809314,131.96,131.92,1.00432314]
[1765567691394,7.57809314,131.96,131.93,0.72]
[1765567691994,7.57809314,131.96,131.93,4.06722965]
[1765567692192,8.80994492,131.95,131.91,9.02]
[1765567692492,12.87717457,131.95,131.92,0.72]
[1765567692815,8.80994492,131.95,131.92,0.72]
[1765567692981,29.87045767,131.96,131.92,0.72]
[1765567692982,7.57809314,131.96,131.92,4.06722965]
[1765567693473,7.57809314,131.96,131.93,0.72]
[1765567694307,16.38742465,131.97,131.93,0.72]
[1765567694475,17.10742465,131.97,131.93,0.72]
[1765567695311,38.67835362,131.97,131.93,0.72]